bitfinex/quotes_ETHUSD_20220105
["timestamp","ask_amount","ask_price","bid_price","bid_amount"]
[1641371047349,6.4473895,3809.0,3807.7,0.379]
[1641371047350,6.46017727,3809.0,3807.7,0.379]
[1641371047548,6.46017727,3809.0,3807.2,1.69188]
[1641371047549,6.3973895,3809.0,3807.2,1.69188]
[1641371047749,0.00682108,3808.9,3808.2,0.65643]
[1641371047994,0.00682108,3808.9,3808.3,2.7387402]
[1641371048193,0.00682108,3808.9,3807.7,0.379]
[1641371048194,0.00625266,3808.8,3808.2,1.03308381]
[1641371048393,0.00625266,3808.8,3808.4,0.65641]
[1641371048592,6.39,3809.0,3808.8,2.59431577]
[1641371048991,0.00113685,3808.9,3808.8,2.59431577]
[1641371051595,0.00591463,3808.9,3808.8,2.59431577]
[1641371055787,0.00591463,3808.9,3808.8,5.14016856]
[1641371060741,0.00591463,3808.9,3808.8,2.59431577]
[1641371061141,0.00113685,3808.9,3808.8,2.59431577]
[1641371065896,0.30113685,3808.9,3808.8,2.59431577]
[1641371066096,0.60113685,3808.9,3808.8,2.59431577]
[1641371066301,1.97890719,3808.9,3808.8,2.59431577]
[1641371067931,0.30113685,3808.9,3808.8,2.59431577]
[1641371077739,0.18656676,3808.9,3808.8,2.59431577]
[1641371077980,0.00113685,3808.9,3808.8,2.59431577]
[1641371078186,0.00113685,3808.9,3808.8,5.07724552]
[1641371078386,0.00113685,3808.9,3808.8,2.59431577]
[1641371078585,0.00113685,3808.9,3808.8,5.0758819]
[1641371079086,1.38060113,3809.7,3808.8,5.0758819]
[1641371079087,0.3,3809.7,3808.8,5.09163202]
[1641371079288,0.3,3809.8,3808.9,2.39331057]
[1641371079484,0.00511581,3809.6,3808.9,2.3884137]
[1641371079686,0.00511581,3809.6,3808.8,2.59431577]
[1641371079887,0.6,3809.8,3808.9,2.40539847]
[1641371079888,0.00454739,3809.5,3808.9,2.40539847]
[1641371080290,0.00397897,3809.4,3808.9,2.40539847]
[1641371080688,1.1392,3810.0,3808.9,2.40539847]
[1641371080689,0.00341054,3809.3,3808.9,2.78439847]
[1641371080889,0.00341054,3809.3,3809.0,0.65626]
[1641371081088,0.00284212,3809.2,3809.1,1.6915]
[1641371081952,0.00284212,3809.2,3809.1,4.5415]
[1641371082847,0.00284212,3809.2,3809.1,7.23552526]
[1641371085691,0.00284212,3809.2,3809.1,23.57552526]
[1641371086691,0.00284212,3809.2,3809.1,28.30752526]
[1641371086890,0.00284212,3809.2,3809.1,28.92962526]
[1641371087492,0.00761952,3809.2,3809.1,28.92962526]
[1641371087894,0.00761952,3809.2,3809.1,13.58962526]
[1641371088096,0.00761952,3809.2,3809.1,12.96752526]
[1641371088495,0.00761952,3809.2,3809.1,28.30752526]
[1641371089335,0.00761952,3809.2,3809.1,28.25752526]
[1641371090736,0.00761952,3809.2,3809.1,12.91752526]
[1641371094096,0.00761952,3809.2,3809.1,28.25752526]
[1641371095895,0.00761952,3809.2,3809.1,10.2235]
[1641371096097,0.00761952,3809.2,3809.1,25.5635]
[1641371101082,0.00761952,3809.2,3809.1,10.2235]
[1641371101983,0.00761952,3809.2,3809.1,7.3735]
[1641371104643,0.00761952,3809.2,3809.1,24.59537999]
[1641371107543,0.00761952,3809.2,3809.1,24.70097999]
[1641371107749,0.00761952,3809.2,3809.1,25.62186873]
[1641371108196,0.00761952,3809.2,3809.1,25.61866873]
[1641371108396,0.00761952,3809.2,3809.1,25.61626873]
[1641371108596,0.00761952,3809.2,3809.1,25.61546873]
[1641371108898,0.00761952,3809.2,3809.1,25.61306873]
[1641371109097,0.00761952,3809.2,3809.1,25.51306873]
[1641371110100,0.00761952,3809.2,3809.1,26.82306873]
[1641371111502,0.0047774,3809.2,3809.1,26.82306873]
[1641371112540,10.93276825,3811.0,3809.1,26.82306873]
[1641371112741,10.93276825,3811.0,3809.7,0.65619]
[1641371112947,10.93276825,3811.0,3809.8,0.379]
[1641371112948,0.01023162,3810.5,3809.8,0.379]
[1641371113347,0.0096632,3810.4,3809.8,0.379]
[1641371113746,0.00909478,3810.3,3809.8,0.379]
[1641371114147,0.00852635,3810.2,3809.8,0.379]
[1641371114447,0.00795793,3810.1,3809.8,0.379]
[1641371114649,0.00795793,3810.1,3809.4,0.0573]
[1641371114950,0.00738951,3810.0,3809.3,0.65627]
[1641371115150,0.00738951,3810.0,3809.1,0.379]
[1641371115350,3.11046789,3810.2,3809.1,0.379]
[1641371115351,0.00682108,3809.9,3809.1,0.379]
[1641371115590,1.4268283,3809.7,3809.1,0.379]
[1641371115987,0.00511581,3809.6,3809.1,0.379]
[1641371116388,0.00454739,3809.5,3809.1,0.379]
[1641371116689,0.00397897,3809.4,3809.1,0.379]
[1641371117087,1.7268283,3809.7,3808.8,0.71276]
[1641371117088,0.00341054,3809.3,3808.8,0.71276]
[1641371117287,0.00341054,3809.3,3808.8,0.65636]
[1641371117492,0.00284212,3809.2,3808.8,0.65636]
[1641371117988,0.0022737,3809.1,3808.8,0.65636]
[1641371118393,0.00170527,3809.0,3808.8,0.65636]
[1641371118795,0.00113685,3808.9,3808.5,3.6398]
[1641371118995,0.00113685,3808.9,3808.4,0.0591]
[1641371119252,0.65643,3809.6,3808.9,0.00092956]
[1641371119253,0.6564518,3809.1,3808.9,0.00092956]
[1641371119554,1.3129207,3809.5,3809.1,2.3]
[1641371119555,1.6129207,3809.5,3809.1,2.3]
[1641371119953,0.66039897,3809.4,3809.1,2.3]
[1641371120153,0.00397897,3809.4,3809.1,2.3]
[1641371120350,0.00341054,3809.3,3809.1,2.3]
[1641371120755,0.00284212,3809.2,3809.1,2.3]
[1641371129041,2.57989791,3809.2,3809.1,2.3]
[1641371129442,0.00284212,3809.2,3809.1,2.3]
[1641371129644,2.6639153,3809.2,3809.1,2.3]
[1641371137991,2.60417448,3809.2,3809.1,2.3]
[1641371140496,0.00284212,3809.2,3809.1,2.3]
[1641371140996,2.56877192,3809.2,3809.1,2.3]
[1641371141736,0.00284212,3809.2,3809.1,2.3]
[1641371143440,0.30284212,3809.2,3809.1,2.3]
[1641371143642,0.00284212,3809.2,3809.1,2.3]
[1641371150341,1.159,3810.1,3809.9,0.63970263]
[1641371150840,1.21989987,3810.2,3809.9,0.63970263]
[1641371151244,0.00511581,3810.1,3809.9,0.63970263]
[1641371151443,0.00511581,3810.1,3810.0,0.00080896]
[1641371151643,0.65629,3810.1,3810.0,0.00080896]
[1641371151947,0.65629,3810.1,3810.0,0.65709836]
[1641371156840,0.65629,3810.1,3810.0,0.95709836]
[1641371159748,0.65629,3810.1,3810.0,0.65709836]
[1641371160590,0.65629,3810.1,3810.0,3.25709836]
[1641371160991,0.65629,3810.1,3810.0,3.55709836]
[1641371162191,0.65629,3810.1,3810.0,3.25709836]
[1641371163295,0.65629,3810.1,3810.0,3.55709836]
[1641371164948,0.05189927,3810.1,3810.0,3.55709836]
[1641371165546,0.65628,3810.2,3810.0,3.55709836]
[1641371168198,4.55926,3810.6,3810.0,3.55709836]
[1641371168395,0.65621,3810.4,3810.0,3.55709836]
[1641371168594,0.00568423,3810.2,3810.0,3.55709836]
[1641371168994,0.00511581,3810.1,3810.0,3.55709836]
[1641371177292,0.00511581,3810.1,3810.0,5.87632778]
[1641371177689,1.2472,3810.9,3810.1,4.25]
[1641371177891,1.2472,3810.9,3810.2,2.32255216]
[1641371178092,3.808,3811.0,3810.5,0.6561204]
[1641371178093,0.00397896,3810.8,3810.5,0.6561204]
[1641371178296,0.00397896,3810.8,3810.6,0.3]
[1641371178492,0.00341054,3810.7,3810.6,0.3]
[1641371182144,0.00341054,3810.7,3810.6,0.23]
[1641371185395,0.01358608,3811.1,3810.6,0.23]
[1641371185797,0.65780527,3811.0,3810.7,0.6560679]
[1641371186199,0.00113685,3810.9,3810.7,0.6560679]
[1641371186740,0.00113685,3810.9,3810.7,0.9560679]
[1641371196745,0.00113685,3810.9,3810.7,0.6560679]
[1641371207796,2.81615942,3810.9,3810.0,2.6]
[1641371207998,0.65629,3810.6,3810.0,2.6]
[1641371208200,2.69330619,3810.5,3810.1,0.00341054]
[1641371208401,2.97637371,3810.8,3810.1,0.00341054]
[1641371208705,2.69171872,3810.3,3810.1,0.00341054]
[1641371208903,3.28983285,3810.2,3810.1,0.00341054]
[1641371210142,3.2059467,3810.2,3810.1,0.00341054]
[1641371210341,0.65641,3810.2,3810.1,0.00341054]
[1641371210542,1.3127,3810.4,3810.1,0.00341054]
[1641371210744,0.65639,3810.4,3810.1,0.00341054]
[1641371210943,0.65623,3810.5,3810.1,0.00341054]
[1641371212847,0.6562,3810.8,3810.1,0.65960874]
[1641371213109,0.6562,3810.8,3810.1,0.00341054]
[1641371213306,0.6562,3810.8,3810.2,0.00284212]
[1641371214904,0.6562,3810.8,3810.3,0.6561826]
[1641371215304,0.6562,3810.8,3810.4,0.00170527]
[1641371216104,0.6562,3810.8,3810.5,0.656192]
[1641371217346,0.6562,3810.8,3810.4,0.00170527]
[1641371217347,1.31244,3810.8,3810.4,0.00170527]
[1641371217848,0.6562,3810.8,3810.4,0.00170527]
[1641371218449,0.65626,3810.6,3810.4,0.00170527]
[1641371218650,1.96879,3810.6,3810.4,0.00170527]
[1641371219652,1.96879,3810.6,3810.2,0.00284212]
[1641371219850,0.65625,3810.5,3810.2,0.00284212]
[1641371222796,1.2054,3811.0,3810.2,0.00284212]
[1641371222996,1.2054,3811.0,3810.5,0.6561327]
[1641371223200,1.31229,3811.2,3810.4,1.3122653]
[1641371223601,0.0022737,3811.1,3810.5,0.00113685]
[1641371223798,0.65613,3810.9,3810.5,0.00113685]
[1641371224839,0.65613,3810.9,3810.6,0.6561327]
[1641371227990,0.65613,3810.9,3810.5,0.00113685]
[1641371228396,0.65621,3810.8,3810.5,0.00113685]
[1641371230599,0.00170527,3811.0,3810.5,0.00113685]
[1641371230600,0.00170527,3811.0,3810.5,0.65726245]
[1641371230801,0.00170527,3811.0,3810.5,0.89733685]
[1641371230999,0.00113685,3810.9,3810.5,0.89733685]
[1641371232047,0.00113685,3810.9,3810.7,1.21352928]
[1641371232246,0.00113685,3810.9,3810.8,7.52487222]
[1641371232645,0.00113685,3810.9,3810.8,7.90387222]
[1641371233452,0.00113685,3810.9,3810.8,9.55989222]
[1641371234952,0.01358608,3811.9,3811.4,0.65589]
[1641371235148,0.01358608,3811.9,3811.4,1.88847]
[1641371235348,0.00511581,3811.8,3811.4,1.88847]
[1641371235799,0.01358608,3811.9,3811.4,1.88847]
[1641371235800,0.00454739,3811.7,3811.4,1.88847]
[1641371236001,0.00454739,3811.7,3811.5,1.3117545]
[1641371236200,0.00397896,3811.6,3811.5,1.3117545]
[1641371238806,0.00397896,3811.6,3811.4,1.3117999]
[1641371239006,0.00397896,3811.6,3811.5,0.65587]
[1641371239243,0.01358608,3812.0,3811.5,0.65587]
[1641371239445,0.01358608,3812.0,3811.4,1.3117999]
[1641371239645,0.00568423,3811.9,3811.4,1.3117999]
[1641371240046,0.01358608,3812.0,3811.4,1.3117999]
[1641371240047,0.00511581,3811.8,3811.4,1.3117999]
[1641371240446,0.00454739,3811.7,3811.5,1.3118543]
[1641371240846,0.00397896,3811.6,3811.5,1.3118543]
[1641371242448,0.00397896,3811.6,3811.4,4.5676999]
[1641371242851,0.00341054,3811.5,3811.4,4.5676999]
[1641371243291,0.00341054,3811.5,3811.4,3.9117999]
[1641371244391,0.00341054,3811.5,3811.4,4.5676999]
[1641371246496,4.9849,3812.4,3811.4,4.5676999]
[1641371246748,0.65594,3812.1,3811.9,0.65594]
[1641371247142,0.00284212,3812.0,3811.9,0.65594]
[1641371250148,0.00284212,3812.0,3811.4,3.9117999]
[1641371250149,0.65599,3811.8,3811.6,0.6559811]
[1641371250602,0.00113685,3811.7,3811.6,0.6559811]
[1641371254544,0.00113685,3811.7,3811.4,2.6]
[1641371254944,0.65717685,3811.7,3811.4,2.6]
[1641371257449,0.65717685,3811.7,3811.4,2.15]
[1641371258303,3.22961001,3811.7,3811.4,2.15]
[1641371258702,3.88570001,3811.7,3811.4,2.15]
[1641371259604,0.65612,3811.6,3811.4,2.15]
[1641371259801,0.65611,3811.5,3811.4,2.15]
[1641371261008,3.19988347,3811.5,3811.4,2.15]
[1641371261204,0.65611,3811.5,3811.4,2.15]
[1641371261404,3.21022705,3811.7,3811.4,2.15]
[1641371261841,0.65717685,3811.7,3811.4,2.15]
[1641371262442,1.31325685,3811.7,3811.4,2.15]
[1641371262843,0.65717685,3811.7,3811.4,2.15]
[1641371280995,0.65604,3811.7,3811.4,2.15]
[1641371284246,1.31211,3811.7,3811.4,2.15]
[1641371284448,0.65604,3811.7,3811.4,2.15]
[1641371285448,0.65609,3811.6,3811.4,2.15]
[1641371285651,1.3122,3811.6,3811.4,2.15]
[1641371286251,2.54582458,3811.5,3811.4,2.15]
[1641371286849,1.3122,3811.6,3811.4,2.15]
[1641371287051,0.65609,3811.6,3811.4,2.15]
[1641371287254,0.65604,3811.7,3811.4,2.15]
[1641371288304,0.65608,3811.6,3811.4,2.15]
[1641371292649,1.31223,3811.6,3811.4,2.15]
[1641371293257,2.54413266,3811.5,3811.4,2.15]
[1641371295058,1.31223,3811.6,3811.4,2.15]
[1641371295911,1.9684198,3811.6,3811.4,2.15]
[1641371299348,1.3122698,3811.6,3811.4,2.15]
[1641371299946,0.65608,3811.6,3811.4,2.15]
[1641371301552,0.65604,3811.7,3811.4,2.15]
[1641371303505,1.3121,3811.7,3811.4,2.15]
[1641371309056,0.65604,3811.7,3811.4,2.15]
[1641371309254,0.65608,3811.6,3811.4,2.15]
[1641371311693,0.65604,3811.7,3811.4,2.15]
[1641371312696,0.65607,3811.6,3811.4,2.15]
[1641371314100,0.65604,3811.7,3811.4,2.15]
[1641371315148,0.65606,3811.6,3811.4,2.15]
[1641371315348,1.9682424,3811.6,3811.4,2.15]
[1641371318400,1.3121524,3811.6,3811.4,2.15]
[1641371320402,0.65606,3811.6,3811.4,2.15]
[1641371323049,1.31214,3811.6,3811.4,2.15]
[1641371323852,1.9682039,3811.6,3811.4,2.15]
[1641371327294,0.3,3811.5,3811.4,2.15]
[1641371327695,1.9682039,3811.6,3811.4,2.15]
[1641371332255,0.3,3811.5,3811.4,2.15]
[1641371332858,1.9682039,3811.6,3811.4,2.15]
[1641371333109,0.65613,3811.5,3811.4,2.15]
[1641371334807,0.95613,3811.5,3811.4,2.15]
[1641371336758,0.65613,3811.5,3811.4,2.15]
[1641371338763,0.95613,3811.5,3811.4,2.15]
[1641371339766,0.65613,3811.5,3811.4,2.15]
[1641371340803,0.95613,3811.5,3811.4,2.15]
[1641371341805,0.65613,3811.5,3811.4,2.15]
[1641371349203,1.3121239,3811.6,3811.4,2.15]
[1641371349403,0.65604,3811.7,3811.5,2.5149886]
[1641371349604,0.65604,3811.7,3811.5,2.8939886]
[1641371349907,0.65604,3811.7,3811.6,2.62122829]
[1641371350106,0.65594,3811.8,3811.6,3.00022829]
[1641371350504,0.65594,3811.8,3811.7,2.34766365]
[1641371350703,0.65594,3811.8,3811.7,2.72666365]
[1641371350903,0.65764527,3811.8,3811.7,0.9777]
[1641371352164,0.65764527,3811.8,3811.7,0.379]
[1641371353971,0.65607,3811.6,3811.4,2.15]
[1641371356901,1.3121533,3811.6,3811.4,2.15]
[1641371358206,0.65607,3811.6,3811.4,2.15]
[1641371358407,1.31323685,3811.7,3811.5,2.34923291]
[1641371358605,1.31323685,3811.7,3811.5,2.37129523]
[1641371359851,1.31323685,3811.7,3811.4,2.15]
[1641371360051,0.65605,3811.6,3811.4,2.15]
[1641371365612,0.65605,3811.6,3811.5,2.34332031]
[1641371365812,0.65605,3811.6,3811.4,2.15]
[1641371370509,0.65605,3811.6,3811.4,1.985817]
[1641371374110,0.95605,3811.6,3811.4,1.985817]
[1641371374555,0.65605,3811.6,3811.5,2.3211804]
[1641371374751,0.65605,3811.6,3811.4,1.985817]
[1641371377557,0.65720685,3811.7,3811.4,1.985817]
[1641371378712,0.65603,3811.6,3811.4,1.985817]
[1641371379911,0.95603,3811.6,3811.4,1.985817]
[1641371380713,0.65603,3811.6,3811.4,1.985817]
[1641371380912,0.65603,3811.6,3811.5,2.32862582]
[1641371381313,0.65603,3811.6,3811.5,2.33577658]
[1641371381952,0.65603,3811.6,3811.5,2.32588905]
[1641371382150,0.65603,3811.6,3811.4,1.985817]
[1641371384056,1.31213,3811.6,3811.4,1.985817]
[1641371386319,0.65603,3811.6,3811.4,1.985817]
[1641371388919,0.65603,3811.6,3811.5,2.3253098]
[1641371390156,0.65603,3811.6,3811.4,1.985817]
[1641371390656,0.65603,3811.6,3811.0,0.379]
[1641371390861,0.65603,3811.6,3810.7,0.0591]
[1641371390862,4.00099024,3811.6,3810.7,0.0591]
[1641371391061,0.6562,3811.2,3811.1,0.00227369]
[1641371391257,1.96859,3811.2,3810.1,0.6561942]
[1641371391455,1.31244,3810.9,3810.0,1.1277]
[1641371391660,1.31244,3810.9,3810.8,0.00170528]
[1641371391857,1.31244,3810.9,3810.1,0.00568424]
[1641371391858,2.4090076,3810.9,3810.1,0.00568424]
[1641371392257,2.4090076,3810.9,3810.0,0.00625266]
[1641371392457,0.65623,3810.5,3810.0,2.3372917]
[1641371392859,0.65623,3810.5,3810.1,0.00568424]
[1641371393511,0.65623,3810.4,3810.1,0.00568424]
[1641371395011,0.65623,3810.4,3810.1,2.60568424]
[1641371395212,0.65623,3810.4,3810.2,2.37312444]
[1641371395410,0.65623,3810.4,3810.2,2.37824026]
[1641371395613,0.65623,3810.4,3810.3,0.00454739]
[1641371395811,0.65623,3810.5,3810.3,0.00454739]
[1641371397259,0.65623,3810.5,3810.2,0.00511582]
[1641371397460,0.65623,3810.5,3810.2,2.36182733]
[1641371397860,0.65623,3810.5,3810.3,0.00454739]
[1641371405058,0.65623,3810.5,3810.2,3.01285821]
[1641371405661,0.65623,3810.5,3810.3,0.00454739]
[1641371409320,0.07237763,3810.4,3810.3,0.00454739]
[1641371409621,0.14475526,3810.4,3810.3,0.00454739]
[1641371409816,0.14475526,3810.4,3810.3,0.66067739]
[1641371410016,0.14475526,3810.4,3810.3,3.07352472]
[1641371410217,0.14475526,3810.4,3810.3,3.45252472]
[1641371413360,0.14475526,3810.4,3810.3,3.75252472]
[1641371413560,0.14475526,3810.4,3810.3,3.45252472]
[1641371414563,0.14475526,3810.4,3810.3,2.79639472]
[1641371417212,0.14475526,3810.4,3810.3,3.09639472]
[1641371418215,0.14475526,3810.4,3810.3,8.34639472]
[1641371420658,0.65605,3811.6,3810.3,8.34639472]
[1641371420659,0.65598,3811.4,3810.4,5.85]
[1641371420864,3.6802,3812.2,3811.0,22.75443289]
[1641371421067,3.6802,3812.2,3811.4,0.6559046]
[1641371421265,3.6239,3812.2,3811.5,0.379]
[1641371421464,0.00568423,3812.1,3811.5,0.379]
[1641371421664,0.65588,3812.0,3811.5,1.87735145]
[1641371421863,0.66099581,3812.0,3811.7,1.25406905]
[1641371422065,0.00454738,3811.9,3811.8,3.779]
[1641371422365,0.00454738,3811.9,3811.8,0.379]
[1641371423117,0.00454738,3811.9,3811.8,1.0348543]
[1641371423417,0.00454738,3811.9,3811.8,0.379]
[1641371426016,0.00454738,3811.9,3811.8,2.979]
[1641371430716,0.66059738,3811.9,3811.8,2.6]
[1641371430916,0.65611,3811.3,3810.6,0.379]
[1641371431317,0.65611,3811.3,3810.7,0.0022737]
[1641371431916,0.6562,3811.1,3810.7,0.0022737]
[1641371432115,0.65617,3811.0,3810.7,0.0022737]
[1641371433519,0.65617,3811.0,3810.4,0.00397897]
[1641371433720,0.68824596,3810.9,3810.4,2.34913686]
[1641371434019,0.65615,3810.8,3810.5,0.00341055]
[1641371434662,0.65615,3810.8,3810.4,0.00397897]
[1641371434963,1.3123,3810.6,3810.4,2.39405514]
[1641371435165,0.65615,3810.8,3810.5,1.0351026]
[1641371435366,0.65615,3810.8,3810.6,2.50177845]
[1641371435568,0.65615,3810.8,3810.6,2.50462057]
[1641371435766,0.68814596,3810.9,3810.7,0.0022737]
[1641371436962,0.68814596,3810.9,3810.7,0.3022737]
[1641371437164,0.68814596,3810.9,3810.8,2.5766193]
[1641371437363,0.68814596,3810.9,3810.8,2.57832458]
[1641371438026,0.03209596,3810.9,3810.8,2.57832458]
[1641371438218,0.03209596,3810.9,3810.8,2.95732458]
[1641371438420,0.03209596,3810.9,3810.8,3.95732458]
[1641371440021,0.03209596,3810.9,3810.8,2.95732458]
[1641371463005,0.03209596,3810.9,3810.8,0.38070528]
[1641371463411,0.03209596,3810.9,3810.8,2.74086515]
[1641371464010,1.32530491,3811.6,3810.8,34.22820188]
[1641371464263,1.32530491,3811.6,3811.1,1.3117733]
[1641371464567,0.00227369,3811.5,3811.2,3.11690978]
[1641371464965,0.00170527,3811.4,3811.2,3.41690978]
[1641371465163,0.00170527,3811.4,3811.3,4.99271408]
[1641371465364,1.31187,3811.6,3811.3,5.37171408]
[1641371465563,5.27805,3811.8,3811.3,5.37171408]
[1641371465763,0.00227369,3811.5,3811.4,4.03000343]
[1641371465964,0.00227369,3811.5,3811.4,7.18294764]
[1641371467169,0.00227369,3811.5,3811.4,4.23294764]
[1641371471210,0.00227369,3811.5,3811.4,1.75900343]
[1641371471610,0.00227369,3811.5,3811.4,0.679]
[1641371474867,0.00227369,3811.5,3811.4,3.05351826]
[1641371476509,0.00227369,3811.5,3811.4,0.379]
[1641371476708,0.00227369,3811.5,3811.4,1.69076]
[1641371476908,0.00227369,3811.5,3811.4,4.29076]
[1641371477309,0.03292222,3811.5,3811.4,4.29076]
[1641371478113,0.03292222,3811.5,3811.4,6.65368096]
[1641371479114,0.03292222,3811.5,3811.4,4.29076]
[1641371490718,0.03292222,3811.5,3811.4,2.979]
[1641371493927,0.03292222,3811.5,3811.4,5.54073268]
[1641371494126,0.00227369,3811.5,3811.4,8.74229985]
[1641371494364,0.00227369,3811.5,3811.4,24.10229985]
[1641371494766,0.00227369,3811.5,3811.4,8.74229985]
[1641371496064,0.65586,3811.7,3811.4,11.34924967]
[1641371496264,1.31171,3812.1,3811.5,2.3117516]
[1641371496567,1.31171,3812.1,3811.6,0.379]
[1641371496764,1.31171,3812.1,3811.7,0.379]
[1641371496965,1.31171,3812.1,3811.7,0.30632241]
[1641371497465,1.31171,3812.1,3811.7,2.65745256]
[1641371497667,0.96756,3812.1,3811.8,0.6558496]
[1641371497866,0.96756,3812.1,3811.9,0.379]
[1641371498126,0.96756,3812.1,3811.9,2.71603605]
[1641371498329,0.96756,3812.1,3812.0,2.32743961]
[1641371498525,0.96756,3812.1,3812.0,2.70643961]
[1641371498724,0.97324423,3812.1,3812.0,0.379]
[1641371502962,1.00388818,3812.1,3812.0,0.379]
[1641371507910,0.03632818,3812.1,3812.0,0.379]
[1641371511666,0.03632818,3812.1,3811.5,1.3118517]
[1641371511868,0.65603,3811.8,3811.4,2.6]
[1641371512269,0.00341054,3811.7,3811.4,2.6]
[1641371512467,1.14333759,3811.7,3811.4,2.6]
[1641371512669,0.00284211,3811.6,3811.4,2.6]
[1641371513124,0.00227369,3811.5,3811.4,2.6]
[1641371514027,0.03292217,3811.5,3811.4,2.6]
[1641371520914,2.8209739,3811.5,3811.4,2.6]
[1641371521515,2.8209739,3811.5,3810.4,0.0562]
[1641371521714,0.65616,3811.0,3810.4,0.0562]
[1641371521918,0.65616,3811.0,3810.3,1.8572]
[1641371521919,0.65616,3811.0,3810.5,0.00341055]
[1641371522314,0.65616,3811.0,3810.4,0.00397897]
[1641371522515,0.65616,3811.0,3810.6,0.6561477]
[1641371522714,0.65615,3810.9,3810.6,0.6561477]
[1641371522916,1.96845,3810.9,3810.7,0.0022737]
[1641371524569,1.3123,3810.9,3810.7,0.0022737]
[1641371525168,1.3123,3810.9,3810.7,0.3022737]
[1641371525367,1.3123,3810.9,3810.7,0.0022737]
[1641371525569,1.3123,3810.9,3810.8,0.00170528]
[1641371525771,1.96846,3810.9,3810.7,0.3022737]
[1641371525969,1.96846,3810.9,3810.4,0.30397897]
[1641371526170,1.96846,3810.9,3810.8,0.00170528]
[1641371530218,0.65616,3810.9,3810.8,0.00170528]
[1641371531022,0.65616,3810.9,3810.8,2.60170528]
[1641371531023,0.686813,3810.9,3810.8,2.60170528]
[1641371538419,0.030653,3810.9,3810.8,2.60170528]
[1641371540667,0.330653,3810.9,3810.8,2.60170528]
[1641371543722,0.030653,3810.9,3810.8,2.60170528]
[1641371548867,0.330653,3810.9,3810.8,2.60170528]
[1641371550918,0.030653,3810.9,3810.8,6.44014075]
[1641371551122,0.030653,3810.9,3810.8,6.74014075]
[1641371557569,0.030653,3810.9,3810.8,4.28070528]
[1641371560921,0.030653,3810.9,3810.8,6.61357946]
[1641371561323,0.030653,3810.9,3810.8,6.61187418]
[1641371562259,0.030653,3810.9,3810.8,4.279]
[1641371563465,0.030653,3810.9,3810.8,2.979]
[1641371568515,0.030653,3810.9,3810.8,3.979]
[1641371568720,0.030653,3810.9,3810.8,6.32858123]
[1641371570556,0.030653,3810.9,3810.8,3.979]
[1641371570758,0.030653,3810.9,3810.8,6.31187418]
[1641371572057,0.030653,3810.9,3810.8,6.3366784]
[1641371573319,0.030653,3810.9,3810.8,6.6366784]
[1641371579667,0.030653,3810.9,3810.8,4.279]
[1641371583916,0.030653,3810.9,3810.8,3.979]
[1641371585157,0.030653,3810.9,3810.8,2.979]
[1641371592361,17.59060001,3809.7,3809.5,1.4121299]
[1641371592564,4.75,3810.8,3809.1,3.85352869]
[1641371592565,2.45542686,3809.5,3809.1,0.91711041]
[1641371592766,0.65647,3809.4,3809.1,0.91711041]
[1641371593372,0.65647,3809.4,3808.5,7.41679019]
[1641371593373,1.33293217,3809.3,3808.5,7.41679019]
[1641371593567,1.33293217,3809.3,3808.2,0.379]
[1641371593568,1.98942217,3809.3,3808.2,0.379]
[1641371593767,0.65656,3808.9,3808.6,0.01421059]
[1641371593967,2.6261829,3808.9,3808.6,0.01421059]
[1641371594368,0.65656,3808.9,3808.0,0.01762113]
[1641371594571,1.31311,3809.0,3808.0,0.01762113]
[1641371594768,2.65894993,3808.9,3808.0,0.01762113]
[1641371595618,1.31308,3808.5,3808.0,0.01762113]
[1641371595817,1.969615,3808.5,3808.0,0.01762113]
[1641371596020,3.72101388,3808.5,3808.0,1.8]
[1641371596420,3.72101388,3808.5,3808.1,0.01705271]
[1641371596816,1.3132836,3808.2,3808.1,0.01705271]
[1641371597019,3.70949774,3808.2,3808.1,0.01705271]
[1641371597222,1.3132836,3808.2,3808.1,0.01705271]
[1641371597422,3.70499456,3808.2,3808.1,0.01705271]
[1641371597818,1.3132836,3808.2,3808.1,0.01705271]
[1641371598424,1.34395834,3808.2,3808.1,0.01705271]
[1641371598624,0.03067474,3808.2,3808.1,0.01705271]
[1641371599660,2.41109143,3808.2,3808.1,0.01705271]
[1641371599963,0.03067474,3808.2,3808.1,0.01705271]
[1641371601461,2.41681056,3808.2,3808.1,0.01705271]
[1641371601662,2.41681056,3808.2,3808.1,0.01807417]
[1641371601862,2.43374228,3808.2,3808.1,0.01807417]
[1641371602666,0.03067474,3808.2,3808.1,0.01807417]
[1641371610512,0.68718404,3808.2,3808.1,0.01807417]
[1641371614021,0.03067474,3808.2,3808.1,0.01807417]
[1641371617164,1.34376764,3808.2,3808.1,0.01807417]
[1641371618019,1.38352473,3808.2,3808.1,0.01807417]
[1641371618223,1.38352473,3808.2,3807.6,0.379]
[1641371618425,0.65659,3808.1,3807.6,0.379]
[1641371618622,0.656589,3808.0,3807.7,0.00227369]
[1641371618821,0.956589,3808.0,3807.7,0.00227369]
[1641371619424,1.613179,3808.0,3807.7,0.00227369]
[1641371620426,0.956589,3808.0,3807.7,0.00227369]
[1641371621024,0.03067789,3807.9,3807.7,0.00227369]
[1641371623068,0.03067789,3807.9,3807.8,0.0009482]
[1641371623469,0.03067789,3807.9,3807.8,0.00265347]
[1641371625075,0.03067789,3807.9,3807.8,0.38165347]
[1641371626915,0.03067789,3807.9,3807.8,15.74165347]
[1641371627115,0.03067789,3807.9,3807.8,16.74165347]
[1641371627315,0.65639,3808.9,3808.4,27.19272329]
[1641371627517,0.01343491,3809.0,3808.4,27.57172329]
[1641371627718,0.00397897,3808.8,3808.4,27.57172329]
[1641371628118,0.00341054,3808.7,3808.4,27.57172329]
[1641371628321,0.00341054,3808.7,3808.4,0.379]
[1641371628523,0.00284212,3808.6,3807.9,0.4378]
[1641371628919,0.0022737,3808.5,3807.9,0.4378]
[1641371629365,0.00170527,3808.4,3807.9,0.4378]
[1641371629564,2.12544854,3808.1,3807.9,0.379]
[1641371632568,2.42544854,3808.1,3807.9,0.379]
[1641371633220,2.12544854,3808.1,3807.9,0.379]
[1641371633420,0.03067651,3808.0,3807.9,0.379]
[1641371633822,0.03067651,3808.0,3807.9,0.38013685]